bitfinex-derivatives/quotes_BTCF0:USTF0_20250823
["timestamp","ask_amount","ask_price","bid_price","bid_amount"]
[1755947672435,1.25887099,115630.0,115620.0,0.35209158]
[1755947674736,1.25887099,115630.0,115620.0,0.34194811]
[1755947674927,1.25887099,115630.0,115620.0,0.73308224]
[1755947675129,1.25887099,115630.0,115620.0,0.35180785]
[1755947675839,0.8775966,115630.0,115620.0,0.35180785]
[1755947676338,1.25887099,115630.0,115620.0,0.35180785]
[1755947676640,0.8775966,115630.0,115620.0,0.35180785]
[1755947676832,1.25887099,115630.0,115620.0,0.35180785]
[1755947677639,1.29476099,115630.0,115620.0,0.35180785]
[1755947683946,1.29476099,115630.0,115620.0,0.33887998]
[1755947684138,1.29476099,115630.0,115620.0,0.35181178]
[1755947684448,1.29476099,115630.0,115620.0,0.33887998]
[1755947685148,0.9134866,115630.0,115620.0,0.33887998]
[1755947685449,1.29476099,115630.0,115620.0,0.33887998]
[1755947686747,1.29476099,115630.0,115620.0,0.69967998]
[1755947690047,1.29476099,115630.0,115620.0,0.77754617]
[1755947690247,1.29476099,115630.0,115620.0,0.66863412]
[1755947690554,1.29476099,115630.0,115620.0,0.66863392]
[1755947693458,1.29476099,115630.0,115620.0,0.65849068]
[1755947693758,1.29476099,115630.0,115620.0,0.66863392]
[1755947695459,0.9134866,115630.0,115620.0,0.66863392]
[1755947695756,1.29476099,115630.0,115620.0,0.66863392]
[1755947696958,1.31427801,115630.0,115620.0,0.66863392]
[1755947700158,1.29476099,115630.0,115620.0,0.69967978]
[1755947701660,1.29476099,115630.0,115620.0,0.68953654]
[1755947701856,1.29476099,115630.0,115620.0,0.69967974]
[1755947705353,1.29376099,115630.0,115620.0,0.69967974]
[1755947705769,1.29276099,115630.0,115620.0,0.69967974]
[1755947706460,1.29376099,115630.0,115620.0,1.08095413]
[1755947706660,1.29476099,115630.0,115620.0,1.08095413]
[1755947707468,1.20824439,115630.0,115620.0,1.08095413]
[1755947707669,0.82697,115630.0,115620.0,1.08095413]
[1755947707866,1.20824439,115630.0,115620.0,1.08095413]
[1755947709669,1.20824439,115630.0,115620.0,0.97204208]
[1755947710168,1.20824439,115630.0,115620.0,1.08108828]
[1755947710970,1.20824439,115630.0,115620.0,1.07094508]
[1755947711172,1.20824439,115630.0,115620.0,0.97204203]
[1755947711572,0.82697,115630.0,115620.0,0.97204203]
[1755947712069,0.82497,115630.0,115620.0,1.08108845]
[1755947712264,1.20624439,115630.0,115620.0,1.08108845]
[1755947712465,1.20624439,115630.0,115620.0,0.97204203]
[1755947712665,0.82497,115630.0,115620.0,0.97204203]
[1755947712870,1.20624439,115630.0,115620.0,0.97204203]
[1755947713072,1.20624439,115630.0,115620.0,1.08108912]
[1755947713364,0.82497,115630.0,115620.0,1.08108912]
[1755947713577,1.20624439,115630.0,115620.0,1.08108912]
[1755947715670,1.20724439,115630.0,115620.0,1.08108912]
[1755947715971,1.20824439,115630.0,115620.0,1.08108912]
[1755947716670,1.20824439,115630.0,115620.0,0.72028912]
[1755947716966,1.20824439,115630.0,115620.0,1.08108912]
[1755947717162,0.82697,115630.0,115620.0,1.08108912]
[1755947717362,0.82697,115630.0,115620.0,0.97204203]
[1755947717563,1.20824439,115630.0,115620.0,1.08109564]
[1755947718872,1.20724439,115630.0,115620.0,1.08109564]
[1755947719072,1.20624439,115630.0,115620.0,1.08109564]
[1755947719476,0.82497,115630.0,115620.0,1.08109564]
[1755947719664,1.20624439,115630.0,115620.0,1.08109564]
[1755947720571,1.20624439,115630.0,115620.0,0.59076764]
[1755947720772,1.20624439,115630.0,115620.0,0.97204203]
[1755947721477,0.82497,115630.0,115620.0,0.97204203]
[1755947721671,1.20624439,115630.0,115620.0,0.97204203]
[1755947722071,1.20624439,115630.0,115620.0,1.08109504]
[1755947722272,1.20624439,115630.0,115620.0,0.69982065]
[1755947722472,1.20624439,115630.0,115620.0,0.59076764]
[1755947722673,1.20624439,115630.0,115620.0,0.97204203]
[1755947722979,1.20624439,115630.0,115620.0,0.59076764]
[1755947723480,1.20624439,115630.0,115620.0,1.08109522]
[1755947723673,0.03589,115630.0,115620.0,1.33186522]
[1755947723880,1.22112439,115640.0,115630.0,0.2066615]
[1755947724175,0.83985,115640.0,115630.0,1.06792782]
[1755947724380,1.22112439,115640.0,115630.0,1.03677114]
[1755947724573,1.22112439,115640.0,115630.0,0.65549675]
[1755947724781,1.22112439,115640.0,115630.0,1.06792782]
[1755947725079,0.83985,115640.0,115630.0,1.06792782]
[1755947725280,0.83985,115640.0,115630.0,0.95887904]
[1755947725471,0.83985,115640.0,115630.0,1.06787801]
[1755947725979,0.84185,115640.0,115630.0,1.06787801]
[1755947726683,1.22312439,115640.0,115630.0,1.06787801]
[1755947726882,0.84185,115640.0,115630.0,1.06787801]
[1755947727883,0.84225,115640.0,115630.0,1.06787801]
[1755947728277,0.84225,115640.0,115630.0,0.95887904]
[1755947728478,0.84225,115640.0,115630.0,1.06781326]
[1755947729089,0.84213,115640.0,115630.0,1.06781326]
[1755947729493,0.84013,115640.0,115630.0,1.06781326]
[1755947729692,0.84013,115640.0,115630.0,1.06781218]
[1755947730094,0.84113,115640.0,115630.0,1.06781218]
[1755947730292,0.84213,115640.0,115630.0,1.06781218]
[1755947732598,0.05329,115640.0,115630.0,1.06781218]
[1755947732892,0.84201,115640.0,115630.0,1.06781218]
[1755947733091,0.84189,115640.0,115630.0,1.06781218]
[1755947733293,0.84185,115640.0,115630.0,1.06781218]
[1755947735093,0.84185,115640.0,115630.0,1.16781218]
[1755947735493,0.05329,115640.0,115630.0,1.95633218]
[1755947735698,0.05329,115640.0,115630.0,2.45633218]
[1755947735898,0.05329,115640.0,115630.0,2.45633143]
[1755947736699,0.05229,115640.0,115630.0,2.34739721]
[1755947737299,0.05229,115640.0,115630.0,1.96612282]
[1755947737494,0.05229,115640.0,115630.0,2.34739721]
[1755947737892,0.05129,115640.0,115630.0,2.34739721]
[1755947738999,0.05129,115640.0,115630.0,2.34739718]
[1755947740103,0.05046,115640.0,115630.0,2.34739718]
[1755947748212,0.05046,115640.0,115630.0,2.34739716]
[1755947753911,0.46777189,115650.0,115640.0,0.0865045]
[1755947754111,0.46777189,115650.0,115640.0,1.08417525]
[1755947754413,0.38127439,115650.0,115640.0,1.08417525]
[1755947755417,0.38227439,115650.0,115640.0,1.08417525]
[1755947755617,0.38327439,115650.0,115640.0,1.08417525]
[1755947757021,0.43372439,115650.0,115640.0,1.08417525]
[1755947757211,0.05245,115650.0,115640.0,1.08417525]
[1755947757411,0.43372439,115650.0,115640.0,1.07403398]
[1755947757612,0.43372439,115650.0,115640.0,1.08417525]
[1755947757820,0.52022139,115650.0,115640.0,1.08417525]
[1755947758419,0.52022139,115650.0,115640.0,0.70290086]
[1755947758613,0.52022139,115650.0,115640.0,1.08417525]
[1755947759016,0.138947,115650.0,115640.0,1.08417525]
[1755947759219,0.52022139,115650.0,115640.0,1.08417525]
[1755947762409,0.52022139,115650.0,115640.0,0.34210086]
[1755947762614,0.52022139,115650.0,115640.0,0.72337525]
[1755947762918,0.138947,115650.0,115640.0,0.72337561]
[1755947763120,0.52022139,115650.0,115640.0,0.72337561]
[1755947763321,0.52022139,115650.0,115640.0,0.34210122]
[1755947764822,0.52022139,115650.0,115640.0,0.72337561]
[1755947765924,0.52022139,115650.0,115640.0,0.72337559]
[1755947766621,0.52022139,115650.0,115640.0,0.61446908]
[1755947766822,0.52022139,115650.0,115640.0,0.72349548]
[1755947768822,0.52022139,115650.0,115640.0,0.61446908]
[1755947769016,0.52022139,115650.0,115640.0,0.23319469]
[1755947769221,0.52022139,115650.0,115640.0,0.61446908]
[1755947771427,0.52022139,115650.0,115640.0,0.72349018]
[1755947772024,0.52022139,115650.0,115640.0,0.34221579]
[1755947772421,0.52022139,115650.0,115640.0,0.72349018]
[1755947772616,0.52022139,115650.0,115640.0,0.71334857]
[1755947772827,0.52022139,115650.0,115640.0,0.72349018]
[1755947773529,0.52022139,115650.0,115640.0,0.71334857]
[1755947774027,0.52022139,115650.0,115640.0,0.72349018]
[1755947774919,0.05245,115650.0,115640.0,2.22317434]
[1755947775231,0.05245,115650.0,115640.0,2.24530347]
[1755947775531,0.05245,115650.0,115640.0,1.86402908]
[1755947775831,0.05145,115650.0,115640.0,2.36362908]
[1755947776430,0.05145,115650.0,115640.0,2.35348747]
[1755947776625,0.05145,115650.0,115640.0,2.36362794]
[1755947776826,0.05245,115650.0,115640.0,2.36362794]
[1755947777126,0.05245,115650.0,115640.0,2.36362793]
[1755947777430,0.05245,115650.0,115640.0,1.98235354]
[1755947777631,0.05245,115650.0,115640.0,2.36362793]
[1755947777930,0.05145,115650.0,115640.0,2.36462793]
[1755947779430,0.05145,115650.0,115640.0,2.36362793]
[1755947781030,0.02736,115650.0,115640.0,2.36362793]
[1755947782931,0.001,115650.0,115640.0,2.36362793]
[1755947783933,0.001,115650.0,115640.0,2.13668976]
[1755947784121,0.001,115650.0,115640.0,2.51796415]
[1755947785734,0.001,115650.0,115640.0,2.13668976]
[1755947785928,0.001,115650.0,115640.0,2.51796406]
[1755947788442,0.001,115650.0,115640.0,2.13668967]
[1755947788631,0.001,115650.0,115640.0,2.51796406]
[1755947789441,0.001,115650.0,115640.0,2.62677474]
[1755947789628,0.001,115650.0,115640.0,2.47243852]
[1755947797242,0.001,115650.0,115640.0,2.36362784]
[1755947797641,0.001,115650.0,115640.0,2.51796406]
[1755947799542,0.001,115650.0,115640.0,2.61796406]
[1755947802246,0.001,115650.0,115640.0,2.23668967]
[1755947802546,0.001,115650.0,115640.0,2.61796406]
[1755947803240,0.001,115650.0,115640.0,2.46362784]
[1755947804448,0.001,115650.0,115640.0,2.45348747]
[1755947804639,0.001,115650.0,115640.0,2.46362784]
[1755947805550,0.02661,115650.0,115640.0,2.46362784]
[1755947807942,0.02661,115650.0,115640.0,2.08235345]
[1755947808241,0.02661,115650.0,115640.0,2.46362784]
[1755947811847,0.02661,115650.0,115640.0,2.08235345]
[1755947812054,0.02661,115650.0,115640.0,2.46362784]
[1755947812357,0.02661,115650.0,115640.0,2.08235345]
[1755947812549,0.02661,115650.0,115640.0,2.46362784]
[1755947821164,0.02661,115650.0,115640.0,2.61796406]
[1755947821864,0.02661,115650.0,115640.0,2.23668967]
[1755947822063,0.02661,115650.0,115640.0,2.60782369]
[1755947822255,0.02661,115650.0,115640.0,2.61796406]
[1755947823468,0.00415192,115650.0,115640.0,2.61796406]
[1755947831369,0.00415192,115650.0,115640.0,2.60782369]
[1755947831568,0.00066938,115650.0,115640.0,2.61796411]
[1755947833172,0.00066938,115650.0,115640.0,2.23668972]
[1755947833372,0.00066938,115650.0,115640.0,2.61796411]
[1755947834873,0.00066938,115650.0,115640.0,2.72697546]
[1755947835675,0.00066938,115650.0,115640.0,2.57263924]
[1755947837270,0.00066938,115650.0,115640.0,2.57363924]
[1755947837673,0.03516466,115660.0,115650.0,0.1579871]
[1755947837874,0.03516466,115660.0,115650.0,0.95620191]
[1755947838772,0.03616466,115660.0,115650.0,0.95620191]
[1755947839880,0.03716466,115660.0,115650.0,0.95620191]
[1755947840678,0.03716466,115660.0,115650.0,0.94606149]
[1755947840880,0.03716466,115660.0,115650.0,0.95620191]
[1755947841172,0.03816466,115660.0,115650.0,0.95620191]
[1755947843580,0.03816466,115660.0,115650.0,1.06521229]
[1755947845784,0.12465426,115660.0,115650.0,0.6839379]
[1755947845972,0.12465426,115660.0,115650.0,1.06521229]
[1755947846176,0.03816466,115660.0,115650.0,1.06521229]
[1755947848685,0.01179466,115660.0,115650.0,1.06521229]
[1755947850183,0.01179466,115660.0,115650.0,1.05507187]
[1755947850487,0.01179466,115660.0,115650.0,1.06521226]
[1755947851186,0.03815466,115660.0,115650.0,1.06521226]
[1755947851987,0.41942905,115660.0,115650.0,1.06521226]
[1755947852482,0.41942905,115660.0,115650.0,0.95620188]
[1755947852686,0.03815466,115660.0,115650.0,0.95620188]
[1755947853283,0.03815466,115660.0,115650.0,1.05507551]
[1755947853487,0.03815466,115660.0,115650.0,1.0652159]
[1755947855575,0.03815466,115660.0,115650.0,0.68394151]
[1755947855781,0.03815466,115660.0,115650.0,1.0652159]
[1755947856280,0.03715466,115660.0,115650.0,1.0652159]
[1755947857481,0.03615466,115660.0,115650.0,1.1652159]
[1755947857683,0.03615466,115660.0,115650.0,1.05620188]
[1755947859292,0.50391835,115660.0,115650.0,1.05620188]
[1755947859495,0.50391835,115660.0,115650.0,1.04606149]
[1755947859794,0.50391835,115660.0,115650.0,1.05620188]
[1755947860093,0.12264396,115660.0,115650.0,1.134071]
[1755947860294,0.50391835,115660.0,115650.0,1.05620188]
[1755947860487,0.50391835,115660.0,115650.0,1.16521864]
[1755947861795,0.03615466,115660.0,115650.0,1.16521864]
[1755947864598,0.03615466,115660.0,115650.0,1.05620188]
[1755947865596,0.03615466,115660.0,115650.0,0.57492749]
[1755947865791,0.03615466,115660.0,115650.0,0.95620188]
[1755947866695,0.41742905,115660.0,115650.0,0.95620188]
[1755947867300,0.03615466,115660.0,115650.0,0.95620188]
[1755947867801,0.03615466,115660.0,115650.0,0.57492749]
[1755947867995,0.03615466,115660.0,115650.0,0.95620188]
[1755947869203,0.03615466,115660.0,115650.0,0.57492749]
[1755947869502,0.03615466,115660.0,115650.0,0.95620188]
[1755947872705,0.03615466,115660.0,115650.0,0.57492749]
[1755947873007,0.03615466,115660.0,115650.0,0.95620188]
[1755947873904,0.41742905,115660.0,115650.0,0.95620188]
[1755947875622,0.41742905,115660.0,115650.0,0.97347246]
[1755947877520,0.03615466,115660.0,115650.0,0.97347246]
[1755947877719,0.03615466,115660.0,115650.0,0.59219807]
[1755947877921,0.03615466,115660.0,115650.0,0.97347246]
[1755947878120,0.03615466,115660.0,115650.0,0.96333207]
[1755947878321,0.03615466,115660.0,115650.0,0.97347246]
[1755947878926,0.03615466,115660.0,115650.0,0.59219807]
[1755947879118,0.03615466,115660.0,115650.0,0.97347246]
[1755947879526,0.03615466,115660.0,115650.0,0.59219807]
[1755947879719,0.03615466,115660.0,115650.0,0.97347246]
[1755947880123,0.41742905,115660.0,115650.0,0.97347246]
[1755947881428,0.03615466,115660.0,115650.0,0.97347246]
[1755947881627,0.03615466,115660.0,115650.0,0.59219807]
[1755947881826,0.03615466,115660.0,115650.0,0.97347246]
[1755947882827,0.03615466,115660.0,115650.0,0.59219807]
[1755947883027,0.03615466,115660.0,115650.0,1.07347246]
[1755947883227,0.41742905,115660.0,115650.0,1.07347246]
[1755947884828,0.03615466,115660.0,115650.0,1.07347246]
[1755947886428,0.03615466,115660.0,115650.0,1.06333207]
[1755947886630,0.03615466,115660.0,115650.0,1.07347246]
[1755947887428,0.03615466,115660.0,115650.0,0.69219807]
[1755947887630,0.03615466,115660.0,115650.0,1.07347246]
[1755947894126,0.03615466,115660.0,115650.0,0.69219807]
[1755947894331,0.03615466,115660.0,115650.0,1.07347246]
[1755947896228,0.03615466,115660.0,115650.0,1.18248015]
[1755947899132,0.03615466,115660.0,115650.0,1.17233976]
[1755947899330,0.03615466,115660.0,115650.0,1.18248015]
[1755947900536,0.03615466,115660.0,115650.0,0.80120576]
[1755947900737,0.03615466,115660.0,115650.0,1.18248015]
[1755947902030,0.41742905,115660.0,115650.0,1.18248015]
[1755947902339,0.41742905,115660.0,115650.0,1.07347246]
[1755947904643,0.03615466,115660.0,115650.0,1.07347246]
[1755947904936,0.41742905,115660.0,115650.0,1.07347246]
[1755947905338,0.41742905,115660.0,115650.0,1.06333207]
[1755947905537,0.03615466,115660.0,115650.0,1.07347246]
[1755947905932,0.41742905,115660.0,115650.0,1.07347246]
[1755947906738,0.03615466,115660.0,115650.0,1.07347246]
[1755947907340,0.03689466,115660.0,115650.0,1.07347246]
[1755947908837,0.03689466,115660.0,115650.0,0.69219807]
[1755947909137,0.03689466,115660.0,115650.0,1.07347246]
[1755947911738,0.41816905,115660.0,115650.0,1.07347246]
[1755947912939,0.41816905,115660.0,115650.0,0.69219807]
[1755947913140,0.03689466,115660.0,115650.0,0.69219807]
[1755947913345,0.41816905,115660.0,115650.0,1.07347246]
[1755947914643,0.41816905,115660.0,115650.0,1.06333207]
[1755947914846,0.41816905,115660.0,115650.0,1.07347246]
[1755947915440,0.03689466,115660.0,115650.0,1.07347246]
[1755947915646,0.41816905,115660.0,115650.0,1.07347246]
[1755947916646,0.41816905,115660.0,115650.0,0.69219807]
[1755947916846,0.41816905,115660.0,115650.0,1.07347246]
[1755947917046,0.41816905,115660.0,115650.0,0.97347246]
[1755947918346,0.41816905,115660.0,115650.0,0.59219807]
[1755947918750,0.41816905,115660.0,115650.0,0.97347246]
[1755947919249,0.03689466,115660.0,115650.0,0.97347246]
[1755947919450,0.41816905,115660.0,115650.0,0.97347246]
[1755947924451,0.50465825,115660.0,115650.0,0.97347246]
[1755947926151,0.50465825,115660.0,115650.0,0.59219807]
[1755947926857,0.12338386,115660.0,115650.0,0.59219807]
[1755947927042,0.12338386,115660.0,115650.0,0.58205768]
[1755947927355,0.50465825,115660.0,115650.0,0.59219808]
[1755947930050,0.50465825,115660.0,115650.0,0.58205768]
[1755947930250,0.50465825,115660.0,115650.0,0.59219808]
[1755947932556,0.50465825,115660.0,115650.0,0.97347247]
[1755947933258,0.50465825,115660.0,115650.0,0.96333207]
[1755947933458,0.50465825,115660.0,115650.0,0.97347247]
[1755947935659,0.50465825,115660.0,115650.0,0.59219808]
[1755947935960,0.50465825,115660.0,115650.0,0.97347247]
[1755947938561,0.50465825,115660.0,115650.0,1.07347247]
[1755947940863,0.12338386,115660.0,115650.0,1.07347247]
[1755947941057,0.41816905,115660.0,115650.0,1.07347247]
[1755947941558,0.03689466,115660.0,115650.0,1.06333207]
[1755947941764,0.03689466,115660.0,115650.0,1.07347247]
[1755947942962,0.50465835,115660.0,115650.0,0.59219808]
[1755947943166,0.12338396,115660.0,115650.0,1.08248241]
[1755947943367,0.50465835,115660.0,115650.0,1.08248241]
[1755947943861,0.12338396,115660.0,115650.0,1.08248241]
[1755947944062,0.50465835,115660.0,115650.0,1.08248241]
[1755947944964,0.12338396,115660.0,115650.0,1.08248241]
[1755947945169,0.50465835,115660.0,115650.0,1.08248241]
[1755947946469,0.50465835,115660.0,115650.0,0.70120802]
[1755947946668,0.50465835,115660.0,115650.0,1.08248241]
[1755947950778,0.50465835,115660.0,115650.0,0.70120802]
[1755947951075,0.50465835,115660.0,115650.0,1.08248248]
[1755947951774,0.50465835,115660.0,115650.0,0.70120809]
[1755947953273,0.50465835,115660.0,115650.0,0.59219815]
[1755947955474,0.50465835,115660.0,115650.0,0.23139815]
[1755947955778,0.50465835,115660.0,115650.0,0.59219815]
[1755947956678,0.50465835,115660.0,115650.0,0.97347254]
[1755947959680,0.50465835,115660.0,115650.0,0.59219815]
[1755947959880,0.50465835,115660.0,115650.0,0.97347254]
[1755947962286,0.50465835,115660.0,115650.0,0.59219815]
[1755947962579,0.50465835,115660.0,115650.0,0.97347254]
[1755947963781,0.50465835,115660.0,115650.0,1.08246719]
[1755947965382,0.50465835,115660.0,115650.0,1.07232672]
[1755947965578,0.50465835,115660.0,115650.0,1.16032163]
[1755947965782,0.50465835,115660.0,115650.0,1.05132698]
[1755947969397,0.50465835,115660.0,115650.0,1.04118651]
[1755947969598,0.50465835,115660.0,115650.0,1.05132698]
[1755947975100,0.50465835,115660.0,115650.0,1.08246719]
[1755947975801,0.47829835,115660.0,115650.0,1.08246719]
[1755947977599,0.47755835,115660.0,115650.0,1.08246719]
[1755947978294,0.47755835,115660.0,115650.0,1.07232672]
[1755947978494,0.47755835,115660.0,115650.0,1.08246719]
[1755947978696,0.09628396,115660.0,115650.0,1.08246719]
[1755947978895,0.47755835,115660.0,115650.0,1.08246719]
[1755947982005,0.00979466,115660.0,115650.0,1.08246719]
[1755947982199,0.79843466,115660.0,115650.0,1.18246719]
[1755947983205,0.79743466,115660.0,115650.0,1.18246719]
[1755947983705,0.79743466,115660.0,115650.0,1.07447254]
[1755947984106,0.00879466,115660.0,115650.0,1.07447254]
[1755947984302,1.64354179,115670.0,115660.0,0.0864889]
[1755947984609,1.64354179,115670.0,115660.0,0.32608357]
[1755947984806,1.65333447,115670.0,115660.0,0.32608357]
[1755947985901,1.65433447,115670.0,115660.0,0.32608357]
[1755947986305,1.27306008,115670.0,115660.0,0.32608357]
[1755947986511,1.65433447,115670.0,115660.0,0.32608357]
[1755947988314,1.65433447,115670.0,115660.0,0.32608349]
[1755947991814,1.29353447,115670.0,115660.0,0.32608349]
[1755947992015,1.65433447,115670.0,115660.0,0.32608349]
[1755947994119,1.27306008,115670.0,115660.0,0.32608349]
[1755947994319,1.65433447,115670.0,115660.0,0.32608349]
[1755947998217,1.65433447,115670.0,115660.0,0.3159431]
[1755947998422,1.27306008,115670.0,115660.0,0.32608349]
[1755947998624,1.65433447,115670.0,115660.0,0.32608349]
[1755948000020,1.29353447,115670.0,115660.0,0.68688349]
[1755948000922,1.29353447,115670.0,115660.0,0.68688305]
[1755948002823,1.29353447,115670.0,115660.0,0.6767431]
[1755948003023,1.29353447,115670.0,115660.0,0.68688305]
[1755948006130,1.29353447,115670.0,115660.0,0.686883]
[1755948009230,1.29353447,115670.0,115660.0,0.68688298]
[1755948011731,0.91226008,115670.0,115660.0,0.68688298]
[1755948011928,1.29353447,115670.0,115660.0,0.68688298]
[1755948015533,1.29353447,115670.0,115660.0,0.6767431]
[1755948015729,1.29353447,115670.0,115660.0,0.68688298]
[1755948023033,1.26719447,115670.0,115660.0,0.68688298]
[1755948024435,0.88592008,115670.0,115660.0,0.68688298]
[1755948024632,1.26719447,115670.0,115660.0,0.68688298]
[1755948024834,1.26719447,115670.0,115660.0,0.6767431]
[1755948025033,1.26719447,115670.0,115660.0,0.68688298]
[1755948025934,1.29352447,115670.0,115660.0,0.68688298]
[1755948027136,1.29352447,115670.0,115660.0,0.32608298]
[1755948027342,1.29352447,115670.0,115660.0,0.68688298]
[1755948031643,0.91225008,115670.0,115660.0,0.68688298]
[1755948031943,1.29352447,115670.0,115660.0,0.68688298]
[1755948032544,0.82576268,115670.0,115660.0,1.16815737]
[1755948032843,1.20703707,115670.0,115660.0,1.16815737]
[1755948033943,1.20703707,115670.0,115660.0,1.05916317]
[1755948034132,1.29351817,115670.0,115660.0,1.05916317]
[1755948034342,1.29351817,115670.0,115660.0,1.05916307]
[1755948036243,1.29351817,115670.0,115660.0,1.16815682]
[1755948041948,0.91224378,115670.0,115660.0,1.16815682]
[1755948042149,1.29351817,115670.0,115660.0,1.16815682]
[1755948049952,1.29351817,115670.0,115660.0,0.78688243]
[1755948050150,1.29351817,115670.0,115660.0,1.16815682]
[1755948053154,0.91224378,115670.0,115660.0,1.16815681]
[1755948053450,1.29351817,115670.0,115660.0,1.16815681]
[1755948058363,0.91224378,115670.0,115660.0,1.16815681]
[1755948060454,1.29351817,115670.0,115660.0,1.16815681]
[1755948062167,1.29351817,115670.0,115660.0,0.78688242]
[1755948062368,1.29351817,115670.0,115660.0,1.06815681]
[1755948062664,1.29351817,115670.0,115660.0,0.62086791]
[1755948062964,1.29351817,115670.0,115660.0,0.23959352]
[1755948063150,1.29351817,115670.0,115660.0,0.32608212]
[1755948064553,1.29351817,115670.0,115660.0,0.31594235]
[1755948064754,1.29351817,115670.0,115660.0,0.32608242]
[1755948066268,0.91224378,115670.0,115660.0,0.32608242]
[1755948066572,1.29351817,115670.0,115660.0,0.70735681]
[1755948071067,1.29351817,115670.0,115660.0,0.59836306]
[1755948073168,1.29351817,115670.0,115660.0,0.21708867]
[1755948073371,1.29351817,115670.0,115660.0,0.70735681]
[1755948074269,1.29351817,115670.0,115660.0,0.32608242]
[1755948074471,1.29351817,115670.0,115660.0,0.70735681]
[1755948077174,1.29351817,115670.0,115660.0,0.32608242]
[1755948077368,1.29351817,115670.0,115660.0,0.70735681]
[1755948080870,1.29351817,115670.0,115660.0,0.69721674]
[1755948081080,1.29351817,115670.0,115660.0,0.70735681]
[1755948081673,1.29351817,115670.0,115660.0,0.32608242]
[1755948083671,0.91224378,115670.0,115660.0,0.32608242]
[1755948083878,1.29351817,115670.0,115660.0,0.32608242]
[1755948084776,1.29351817,115670.0,115660.0,0.70735681]
[1755948088681,1.29351817,115670.0,115660.0,0.80735681]
[1755948091680,0.82576268,115670.0,115660.0,0.80735681]
[1755948091887,0.82576268,115670.0,115660.0,0.77622506]
[1755948092384,0.03712268,115670.0,115660.0,1.38702506]
[1755948092774,0.03712268,115670.0,115660.0,1.00575067]
[1755948093074,0.03712268,115670.0,115660.0,1.38702506]
[1755948093384,0.03712268,115670.0,115660.0,1.88702506]
[1755948093981,0.03712268,115670.0,115660.0,2.68262506]
[1755948094276,0.03712268,115670.0,115660.0,1.88702506]
[1755948096985,0.03712268,115670.0,115660.0,1.99601881]
[1755948097183,0.03712268,115670.0,115660.0,1.91815681]
[1755948099088,0.03712268,115670.0,115660.0,1.80916217]
[1755948099287,0.03712268,115670.0,115660.0,1.91808188]
[1755948099999,0.03712268,115670.0,115660.0,1.66808188]
[1755948100592,0.03712268,115670.0,115660.0,1.91808188]
[1755948102195,0.03712268,115670.0,115660.0,1.80916217]
[1755948105192,0.03712268,115670.0,115660.0,1.82203337]
[1755948108193,0.03712268,115670.0,115660.0,1.81189419]
[1755948108386,0.03712268,115670.0,115660.0,1.82203226]
[1755948108994,0.03712268,115670.0,115660.0,1.82203225]
[1755948109794,0.03712268,115670.0,115660.0,1.9309061]
[1755948113493,0.03712268,115670.0,115660.0,1.93090451]
[1755948117598,0.03712268,115670.0,115660.0,1.92076548]
[1755948117799,0.03712268,115670.0,115660.0,1.93090675]
[1755948117998,0.03712268,115670.0,115660.0,1.94821862]
[1755948118701,0.03712268,115670.0,115660.0,1.83934477]
[1755948118897,0.03712268,115670.0,115660.0,1.58934477]
[1755948120602,0.03712268,115670.0,115660.0,1.69826992]
[1755948121598,0.03712268,115670.0,115660.0,1.31699553]
[1755948121798,0.03712268,115670.0,115660.0,1.58934477]
[1755948123197,0.03712268,115670.0,115660.0,1.66716625]
[1755948124201,0.03712268,115670.0,115660.0,1.58934477]
[1755948124506,0.03712268,115670.0,115660.0,1.69829485]
[1755948125200,0.03712268,115670.0,115660.0,1.20807038]
[1755948125504,0.03712268,115670.0,115660.0,1.58934477]
[1755948125900,0.03712268,115670.0,115660.0,1.57647389]
[1755948126099,0.03712268,115670.0,115660.0,1.58935146]
[1755948126302,0.03712268,115670.0,115660.0,1.69830623]
[1755948127005,0.03712268,115670.0,115660.0,1.31703184]
[1755948127204,0.03712268,115670.0,115660.0,1.69830623]
[1755948128306,0.03712268,115670.0,115660.0,1.31703184]
[1755948128606,0.03712268,115670.0,115660.0,1.69830623]
[1755948129006,0.41839707,115670.0,115660.0,1.31703184]
[1755948129211,0.41839707,115670.0,115660.0,1.69830623]
[1755948129903,0.90109623,115680.0,115660.0,1.69830623]
[1755948130103,0.90109623,115680.0,115670.0,0.5662411]
[1755948130104,1.28237062,115680.0,115670.0,0.5662411]
[1755948130712,1.13897062,115680.0,115670.0,0.5662411]
[1755948132613,1.1483472,115680.0,115670.0,0.5662411]
[1755948132912,1.1493472,115680.0,115670.0,0.5662411]
[1755948133111,1.1513472,115680.0,115670.0,0.5662411]
[1755948134211,1.1513472,115680.0,115670.0,0.67519587]
[1755948141521,1.1513472,115680.0,115670.0,0.5662411]
[1755948141709,1.7621472,115680.0,115670.0,0.1632882]
[1755948142009,2.14342159,115680.0,115670.0,0.1112882]
[1755948142209,1.7621472,115680.0,115670.0,0.1112882]
[1755948143020,1.38087281,115680.0,115670.0,0.1112882]
[1755948143214,1.7621472,115680.0,115670.0,0.1112882]
[1755948143419,1.38087281,115680.0,115670.0,0.1112882]
[1755948143920,1.38087281,115680.0,115670.0,0.1329782]
[1755948143921,1.7621472,115680.0,115670.0,0.1329782]
[1755948144118,1.7621472,115680.0,115670.0,0.1487382]
[1755948144319,1.7621472,115680.0,115670.0,0.1968182]
[1755948144623,1.7621472,115680.0,115670.0,0.2832995]
[1755948146827,1.7621472,115680.0,115670.0,0.1968182]
[1755948147122,1.7621472,115680.0,115670.0,0.1487382]
[1755948149319,1.7621472,115680.0,115670.0,0.2673495]
[1755948149912,1.5121472,115680.0,115670.0,0.2673495]
[1755948150522,1.5121472,115680.0,115670.0,0.2811195]
[1755948152423,1.5121472,115680.0,115670.0,0.2032613]
[1755948153725,1.13087281,115680.0,115670.0,0.2032613]
[1755948154224,1.5121472,115680.0,115670.0,0.2032613]
[1755948154820,1.5121472,115680.0,115670.0,0.55240569]
[1755948155026,1.5121472,115680.0,115670.0,0.58453569]
[1755948155532,1.5121472,115680.0,115670.0,0.2032613]
[1755948156937,1.5121472,115680.0,115670.0,0.28106444]
[1755948160732,1.13087281,115680.0,115670.0,0.28106444]
[1755948160927,1.5121472,115680.0,115670.0,0.2032613]
[1755948164132,1.5121472,115680.0,115670.0,0.28107412]
[1755948165735,1.5121472,115680.0,115670.0,0.2032613]
[1755948166032,1.5121472,115680.0,115670.0,0.31221607]
[1755948170637,1.5121472,115680.0,115670.0,0.26631607]
[1755948170833,1.5121472,115680.0,115670.0,0.21910607]
[1755948171136,1.5121472,115680.0,115670.0,0.13262477]
[1755948171331,1.5121472,115680.0,115670.0,0.02367]
[1755948171533,1.5121472,115680.0,115670.0,0.1101511]
[1755948173840,1.5121472,115680.0,115670.0,0.18801156]
[1755948176742,1.5121472,115680.0,115670.0,0.19800156]
[1755948177244,1.13087281,115680.0,115670.0,0.19800156]
[1755948177540,1.5121472,115680.0,115670.0,0.19800156]
[1755948177942,1.5121472,115680.0,115670.0,0.28224156]
[1755948184748,1.5121472,115680.0,115670.0,0.24990156]